Cogmind - Beta 16 @@@ ROGUE MODE // 2026.01.03 @ 02:11:20 Player: Maulwurf Result: Destroyed by P-60 Hacker with Shock Rifle Performance ------------- Evolutions (3) 1500 Regions Visited (10) 2000 Robots Destroyed (35) 175 Value Destroyed (1352) 1352 Prototype IDs (35) 700 Alien Tech Used (0) 0 Bonus (705) 705 TOTAL SCORE: 6432 Bonus ------- Follower Combat Kills 105 Aligned with FarCom 300 Met Data Miner 300 Cogmind --------- Core Integrity 0/700 Matter 300/300 Energy 100/100 System Corruption 0% Temperature Cool (0) Movement Core (50) Location -6/Proximity Caves Parts ------- > --- POWER (1) -------- (None) > --- PROPULSION (5) --- (None) > --- UTILITY (4) ------ (None) > --- WEAPON (3) ------- (None) > --- INVENTORY (5) ---- Improved Heat Sink Humpback Tactical Coordination Suite Lightning Gun Peak State ------------ > --- POWER ------------ Light Angular Momentum Engine > --- PROPULSION ------- Light Treads Medium Treads Wheel Compact Wheel > --- UTILITY ---------- High-capacity Storage Unit Improved Signal Interpreter Hardened Medium Armor Plating Splice Drone Bay > --- WEAPON ----------- Heavy Particle Cannon AWS/Gauss > --- INVENTORY -------- Light Ion Engine Light Nuclear Core Improved Deuterium Engine Humpback Medium Matter Pod Tactical Coordination Suite Advanced ECM Suite Advanced ECM Suite Improved Medium Armor Plating Makeshift Kinetic Plating EM Shield Makeshift Hacking Suite Lightning Gun Plasma Rifle Autogun Heavy Battle Rifle Advanced Assault Cannon Improved Datajack Mining Laser [Rating: 51] Favorites ----------- Power Ion Engine Engine Ion Engine Power Core Light Nuclear Core Propulsion Light Treads Treads Light Treads Wheel Compact Wheel Utility High-capacity Storage Unit Device Seismic Detector Storage High-capacity Storage Unit Processor Improved Signal Interpreter Protection Hardened Medium Armor Plating Weapon Assault Rifle Energy Gun Lightning Gun Energy Cannon Beam Cannon Ballistic Gun Assault Rifle Ballistic Cannon Flak Cannon Special Weapon Mining Laser Build | -11 -10 -10 -10 -9 -8 -7 -7 -7 -7 -6 ------- Run | Yrd Mat Min Exi Min Mat Fac Low Low Dat Pro Slots Evolved 6 | . . . . . 4 2 . . . . Power . | . . . . . . . . . . . Propulsion 3 | . . . . . 2 1 . . . . Utility 2 | . . . . . 1 1 . . . . Weapon 1 | . . . . . 1 . . . . . Parts Attached 43 | 8 1 . 1 2 13 3 9 5 1 . Power 6 | 2 . . . . 1 . 2 1 . . Engine 5 | 2 . . . . 1 . 1 1 . . Core 1 | . . . . . . . 1 . . . Reactor . | . . . . . . . . . . . Propulsion 12 | 2 . . . . 2 1 5 2 . . Treads 7 | 2 . . . . 2 1 . 2 . . Leg . | . . . . . . . . . . . Wheel 5 | . . . . . . . 5 . . . Hover . | . . . . . . . . . . . Flight . | . . . . . . . . . . . Utility 12 | 2 . . 1 2 5 1 . 1 . . Device 6 | 1 . . . 2 3 . . . . . Storage 3 | 1 . . 1 . 1 . . . . . Processor 2 | . . . . . 1 1 . . . . Hackware . | . . . . . . . . . . . Protection 1 | . . . . . . . . 1 . . Artifact . | . . . . . . . . . . . Weapon 13 | 2 1 . . . 5 1 2 1 1 . Energy Gun 5 | . . . . . 3 . 1 . 1 . Energy Cannon 2 | . 1 . . . . . . 1 . . Ballistic Gun 4 | 1 . . . . 2 . 1 . . . Ballistic Cannon 1 | . . . . . . 1 . . . . Launcher . | . . . . . . . . . . . Special Weapon 1 | 1 . . . . . . . . . . Impact Weapon . | . . . . . . . . . . . Slashing Weapon . | . . . . . . . . . . . Piercing Weapon . | . . . . . . . . . . . Special Melee Weapon . | . . . . . . . . . . . Unidentified Prototypes 2 | . . . . 2 . . . . . . Parts Lost 25 | . . . . . . . 8 8 9 . Power 2 | . . . . . . . 1 . 1 . Propulsion 12 | . . . . . . . 5 3 4 . Utility 5 | . . . . . . . 1 2 2 . Weapon 6 | . . . . . . . 1 3 2 . Highest Loss Streak 9 | . . . . . . . 4 7 9 . To Critical Strikes 1 | . . . . . . . 1 . . . Average Backups 12 | 1 6 8 9 11 16 16 16 16 18 4 Power 1 | . 1 1 1 1 1 1 1 2 2 . Propulsion 2 | 1 3 3 3 3 3 3 2 . . . Utility 5 | . 1 3 3 5 8 7 7 8 8 3 Weapon 2 | . . 1 1 2 3 4 5 4 5 1 Tool/Special . | . . . . . . . . . . . Unused Backups 17 | . . . . . 1 . 3 1 9 3 Power . | . . . . . . . . . . . Propulsion 1 | . . . . . . . 1 . . . Utility 12 | . . . . . 1 . 2 1 5 3 Weapon 3 | . . . . . . . . . 3 . Tool/Special 1 | . . . . . . . . . 1 . Average Slot Usage (%) 95 | . 100 100 100 100 86 93 99 89 75 . Engine 10 | . 14 14 14 14 9 7 6 7 6 . Treads 24 | . 28 28 28 28 26 31 18 17 13 . Wheel 6 | . . . . . . . 18 17 13 . Device 13 | . 14 14 14 14 12 14 14 8 6 . Storage 10 | . 14 14 14 14 9 7 7 7 6 . Processor 3 | . . . . . 3 7 7 7 6 . Energy Gun 3 | . . . . . 17 11 4 1 . . Energy Cannon 7 | . 13 14 14 14 2 . . 5 6 . Ballistic Gun 11 | . 14 14 14 14 5 7 10 6 6 . Ballistic Cannon 1 | . . . . . . 2 7 1 . . Peak Build Rating 51 | 7 8 8 9 18 40 34 42 51 51 1 Average Rating 23 | 4 7 8 8 15 29 33 37 48 46 1 On Entrance 19 | . 7 8 8 9 18 32 34 42 51 1 Avg Prop Armor Cover (%) 9 | . . . . . . . 8 11 9 . Naked Turns 68 | . . . . . . . . . 9 59 Heaviest Build 82 | 14 16 16 51 51 62 61 65 82 81 . Greatest Support 100 | 40 40 40 40 40 80 100 100 58 26 3 Greatest Overweight (x) 3 | . . . 1 1 1 . 1 3 3 . Average Overweight (x) . | . . . . 1 . . . 2 2 . Largest Inventory Capacity 20 | 8 8 8 20 20 20 20 20 20 20 5 Average Capacity 18 | 7 8 8 19 20 20 20 20 20 19 5 Most Carried 20 | 5 8 8 12 15 20 20 20 20 20 5 Average Carried 14 | 2 6 8 10 13 18 18 18 17 19 5 Final Capacity 20 | 8 8 8 20 20 20 20 20 20 5 5 Final Carried 20 | 5 8 8 12 15 20 20 20 20 5 5 Class Distribution -------------------- 43% | Mutant 25% | Scavenger-Skirmisher 20% | Skirmisher 10% | Tank Dominant Class ---------------- Mutant | -10/Materials Mutant | -10/Mines Mutant | -10/Exiles Skirmisher | -9/Mines Skirmisher | -8/Materials Skirmisher | -7/Factory Scavenger-Skirmisher | -7/Lower Caves Tank | -7/Lower Caves Tank | -7/Data Miner Mutant | -6/Proximity Caves Resources | -11 -10 -10 -10 -9 -8 -7 -7 -7 -7 -6 ----------- Run | Yrd Mat Min Exi Min Mat Fac Low Low Dat Pro Matter Collected 1298 | 226 30 95 . 99 206 46 551 45 . . Remotely . | . . . . . . . . . . . Salvage Created 1649 | 80 30 40 . . 337 46 555 468 93 . Parts 63 | 5 1 6 . . 14 1 16 16 4 . Haulers Intercepted 1 | . . . . . 1 . . . . . Recyclers Shooed 1 | . . . . . 1 . . . . . Parts Field Recycled . | . . . . . . . . . . . Retrieved Matter . | . . . . . . . . . . . Parts Self-Destructed 30 | . . . . . . . 16 14 . . Prevented . | . . . . . . . . . . . Parts Restored . | . . . . . . . . . . . Kills | -11 -10 -10 -10 -9 -8 -7 -7 -7 -7 -6 ------- Run | Yrd Mat Min Exi Min Mat Fac Low Low Dat Pro Combat Hostiles Destroyed 29 | . . 3 . . 4 1 12 8 1 . Guns 18 | . . 1 . . 4 . 4 8 1 . Cannons 11 | . . 2 . . . 1 8 . . . Classes Destroyed 13 | 2 1 1 . . 5 . 3 1 . . Builder 1 | . . . . . 1 . . . . . Tunneler 1 | 1 . . . . . . . . . . Hauler 1 | . . . . . 1 . . . . . Recycler 1 | 1 . . . . . . . . . . Watcher 2 | . 1 . . . 1 . . . . . Swarmer 7 | . . 3 . . . . 4 . . . Grunt 15 | . . . . . 2 . 6 7 . . Duelist 1 | . . . . . . . 1 . . . Sentry 2 | . . . . . 1 1 . . . . Hunter 1 | . . . . . 1 . . . . . Programmer 1 | . . . . . . . 1 . . . Behemoth 1 | . . . . . . . . 1 . . Enhanced Grunt 1 | . . . . . . . . . 1 . Packrat 2 | . . . . . . . 2 . . . Samaritan 2 | . . . . . . . 2 . . . Best Kill Streak 4 | 1 1 3 . . 3 1 4 4 1 . Combat Bots Only 4 | . . 3 . . 2 1 4 4 1 . Max Kills in Single Turn 2 | 1 1 2 . . 1 1 1 1 1 . Gunslinging . | . . . . . . . . . . . Exploded . | . . . . . . . . . . . Melee . | . . . . . . . . . . . Uniques/NPCs Destroyed . | . . . . . . . . . . . Combat | -11 -10 -10 -10 -9 -8 -7 -7 -7 -7 -6 -------- Run | Yrd Mat Min Exi Min Mat Fac Low Low Dat Pro Hostile Shots Fired 223 | . . 10 . . 30 24 77 38 36 8 Missed 60 | . . 2 . . 6 8 19 9 11 5 Hits 163 | . . 8 . . 24 16 58 29 25 3 Projectile 163 | . . 8 . . 24 16 58 29 25 3 Critical Strikes 5 | . . . . . 2 . 2 1 . . Damage Taken 3090 | . . 63 . . 340 88 904 490 1164 41 Core 790 | . . 7 . . 74 12 122 80 454 41 Absorbed by Shields . | . . . . . . . . . . . Core Remaining (%) 94 | 100 . . . 97 86 . . . . . Volleys Fired 92 | 4 4 5 . . 17 4 38 14 6 . Largest 3 | 2 2 2 . . 3 2 3 1 1 . Hottest 165 | 120 80 80 . . 165 92 117 75 75 . Shots Fired 271 | 5 8 10 . . 62 8 101 51 26 . Gun 202 | 4 4 5 . . 61 4 63 37 24 . Cannon 68 | . 4 5 . . 1 4 38 14 2 . Launcher . | . . . . . . . . . . . Special 1 | 1 . . . . . . . . . . Kinetic 188 | 4 4 5 . . 19 4 95 37 20 . Thermal 31 | 1 4 5 . . 1 . . 14 6 . Explosive . | . . . . . . . . . . . Electromagnetic 52 | . . . . . 42 4 6 . . . Robot Hit Streak 13 | 1 2 2 . . 9 4 11 13 8 . Robot Miss Streak 10 | 3 2 5 . . 4 5 10 2 2 . Penetration Max . | . . . . . . . . . . . Secondary Targets 1 | . . . . . 1 . . . . . Max Gunslinging Chain 1 | . . . . . 1 . . . . . Autonomous 68 | . . . . . 11 . . 37 20 . Shots Hit Robots 182 | 2 3 4 . . 38 6 70 39 20 . Core Hits 115 | 2 . 3 . . 13 7 65 17 8 . Critical Kills 1 | . 1 . . . . . . . . . Critical Parts Destroyed 5 | . . . . . . . 2 3 . . Critical Strikes 7 | . 1 . . . . . 2 3 1 . Burn 1 | . . . . . . . . . 1 . Meltdown 1 | . 1 . . . . . . . . . Destroy 5 | . . . . . . . 2 3 . . Melee Attacks . | . . . . . . . . . . . Impact . | . . . . . . . . . . . Slashing . | . . . . . . . . . . . Piercing . | . . . . . . . . . . . Sneak Attacks . | . . . . . . . . . . . Combat Hostiles . | . . . . . . . . . . . Follow-up Attacks . | . . . . . . . . . . . Damage Inflicted 4232 | 28 42 79 . . 884 135 1393 1117 554 . Guns 3176 | 28 24 43 . . 830 34 702 961 554 . Cannons 922 | . 18 36 . . . 96 616 156 . . Explosions 125 | . . . . . 50 . 75 . . . Melee . | . . . . . . . . . . . Ramming 9 | . . . . . 4 5 . . . . Kinetic 3180 | 28 24 43 . . 303 96 1233 961 492 . Thermal 397 | . 18 36 . . 50 . 75 156 62 . Explosive . | . . . . . . . . . . . Electromagnetic 646 | . . . . . 527 34 85 . . . Impact . | . . . . . . . . . . . Slashing . | . . . . . . . . . . . Piercing . | . . . . . . . . . . . Highest Corruption . | . . . . . . . . . . . Average Corruption . | . . . . . . . . . . . Corruption Purged . | . . . . . . . . . . . Corruption Blocked . | . . . . . . . . . . . Overload Shots . | . . . . . . . . . . . Overflow Damage 11 | . . . . . . . 11 . . . Projectiles 11 | . . . . . . . 11 . . . Explosions . | . . . . . . . . . . . Melee . | . . . . . . . . . . . Knockbacks 23 | . . . . . . . 23 . . . Impact . | . . . . . . . . . . . Kinetic 21 | . . . . . . . 21 . . . Secondary 2 | . . . . . . . 2 . . . Self-Inflicted Damage . | . . . . . . . . . . . Shots . | . . . . . . . . . . . Rammed 2 | . . . . . 1 1 . . . . Targets Rammed 2 | . . . . . 1 1 . . . . Kicked . | . . . . . . . . . . . Crushed . | . . . . . . . . . . . Highest Temperature 402 | 20 36 90 . . 279 24 156 402 34 . Average Temperature 68 | 11 16 47 . . 104 13 30 123 20 . Received Heat Transfer 894 | . . . . . 144 . 261 489 . . Effects 2 | . . . . . . . . 2 . . Shutdowns 1 | . . . . . . . . 1 . . Damage (minor) 1 | . . . . . . . . 1 . . Siege Activations . | . . . . . . . . . . . Martial Activations . | . . . . . . . . . . . Shielding Activations . | . . . . . . . . . . . Robots Disrupted . | . . . . . . . . . . . Combat Hostiles . | . . . . . . . . . . . Robots Corrupted 1 | . . . . . 1 . . . . . Combat Hostiles . | . . . . . . . . . . . Parts Fried 2 | . . . . . 2 . . . . . Impact Corruptions . | . . . . . . . . . . . Robots Melted 1 | . 1 . . . . . . . . . Combat Hostiles . | . . . . . . . . . . . Parts Melted 2 | . 2 . . . . . . . . . Heat Transferred 833 | . 37 74 . . 100 . 100 222 300 . Parts Sabotaged . | . . . . . . . . . . . Parts Stolen . | . . . . . . . . . . . Parts Stripped . | . . . . . . . . . . . Power Chain Reactions 3 | . . . . . 2 . 1 . . . Alert | -11 -10 -10 -10 -9 -8 -7 -7 -7 -7 -6 ------- Run | Yrd Mat Min Exi Min Mat Fac Low Low Dat Pro Maximum Alert Level . | . . . . . . . . . . . Low Security (%) 100 | 100 100 100 . 100 100 100 . . . . Level 1 . | . . . . . . . . . . . Level 2 . | . . . . . . . . . . . Level 3 . | . . . . . . . . . . . Level 4 . | . . . . . . . . . . . Level 5 . | . . . . . . . . . . . High Security . | . . . . . . . . . . . Max Security . | . . . . . . . . . . . Peak Influence 92 | 5 22 60 . . 92 30 . . . . Initial 3 | . . . . . . 3 . . . . Average 9 | . 1 8 . . 27 3 . . . . Influence Increases 915 | 10 40 70 . . 268 42 295 190 . . Destroy 0b10 Robot/C 620 | . . 60 . . 140 20 240 160 . . Destroy 0b10 Robot/NC 30 | 10 5 . . . 15 . . . . . Destroy Leader 136 | . 2 10 . . 44 10 40 30 . . Allied During Kill 9 | . . . . . 9 . . . . . Successful Hack 50 | . 32 . . . 6 12 . . . . Destroy Structure 10 | . 1 . . . 9 . . . . . Lose Combat Pursuer 60 | . . . . . 45 . 15 . . . Influence Decreases 915 | 10 40 30 40 . 259 51 295 122 68 . Entered New Map 114 | . . . 40 . . 6 . . 68 . Time Decay 705 | 10 40 30 . . 223 45 235 122 . . Lost Part 60 | . . . . . . . 60 . . . Lost Ally 36 | . . . . . 36 . . . . . Squads Dispatched 3 | . . . . . 3 . . . . . Investigation 1 | . . . . . 1 . . . . . Extermination . | . . . . . . . . . . . Reinforcement 1 | . . . . . 1 . . . . . Assault . | . . . . . . . . . . . Garrison 1 | . . . . . 1 . . . . . Intercept . | . . . . . . . . . . . Searches Triggered . | . . . . . . . . . . . Construction Impeded . | . . . . . . . . . . . Haulers Reinforced . | . . . . . . . . . . . Active Scanning Responses . | . . . . . . . . . . . Cargo Convoy Interrupts . | . . . . . . . . . . . Stealth | -11 -10 -10 -10 -9 -8 -7 -7 -7 -7 -6 --------- Run | Yrd Mat Min Exi Min Mat Fac Low Low Dat Pro Distress Signals 4 | . . . . . 4 . . . . . Communications Jammed . | . . . . . . . . . . . Distress Signals . | . . . . . . . . . . . Times Spotted 49 | . 4 3 . . 14 1 14 7 4 2 Peak Tracking Total 4 | . 2 3 . . 3 1 4 3 4 3 Tactical Retreats 4 | . . . . . 3 . 1 . . . Traps | -11 -10 -10 -10 -9 -8 -7 -7 -7 -7 -6 ------- Run | Yrd Mat Min Exi Min Mat Fac Low Low Dat Pro Traps Triggered . | . . . . . . . . . . . Indirectly . | . . . . . . . . . . . Trap Hack Attempts . | . . . . . . . . . . . Triggered . | . . . . . . . . . . . Disarmed . | . . . . . . . . . . . Reprogrammed . | . . . . . . . . . . . Reused . | . . . . . . . . . . . Traps Extracted . | . . . . . . . . . . . Installed . | . . . . . . . . . . . Triggered . | . . . . . . . . . . . Machines | -11 -10 -10 -10 -9 -8 -7 -7 -7 -7 -6 ---------- Run | Yrd Mat Min Exi Min Mat Fac Low Low Dat Pro Machines Disabled 1 | . . . . . . . . . 1 . Max in Single Turn 1 | . . . . . . . . . 1 . Machines Repaired . | . . . . . . . . . . . Machines Dismantled . | . . . . . . . . . . . Machines Sabotaged . | . . . . . . . . . . . Overloaded Fab Kills . | . . . . . . . . . . . Hacking | -11 -10 -10 -10 -9 -8 -7 -7 -7 -7 -6 --------- Run | Yrd Mat Min Exi Min Mat Fac Low Low Dat Pro Machines Accessed 19 | . 4 . 5 1 2 1 1 1 4 . Terminals 6 | . 3 . . . 2 . . 1 . . Fabricators . | . . . . . . . . . . . Repair Stations 1 | . 1 . . . . . . . . . Recycling Units 1 | . . . . . . 1 . . . . Scanalyzers . | . . . . . . . . . . . Garrison Access . | . . . . . . . . . . . Total Hacks 103 | . 12 . 50 1 5 2 1 1 31 . Successful 95 | . 8 . 50 1 1 2 1 1 31 . Failed 8 | . 4 . . . 4 . . . . . Catastrophic 3 | . 1 . . . 2 . . . . . Database Lockouts . | . . . . . . . . . . . Manual 20 | . 10 . 1 . 5 1 . 3 . . Terminals 17 | . 11 . . . 5 . . 1 . . Fabricators . | . . . . . . . . . . . Repair Stations 1 | . 1 . . . . . . . . . Recycling Units 2 | . . . . . . 2 . . . . Scanalyzers . | . . . . . . . . . . . Garrison Access . | . . . . . . . . . . . Terminal Hacks 89 | . 5 . 50 1 . . 1 1 31 . Record 61 | . . . 49 . . . . 1 11 . Part Schematic 13 | . . . . . . . . . 13 . Robot Schematic 4 | . . . . . . . . . 4 . Prototype ID Bank 3 | . . . . . . . . . 3 . Open Door 2 | . . . . 1 . . 1 . . . Branch Access Points 1 | . 1 . . . . . . . . . Terminal Index 1 | . 1 . . . . . . . . . Locate Traps 1 | . 1 . . . . . . . . . Patrol Status 1 | . 1 . . . . . . . . . Zone Layout 1 | . 1 . . . . . . . . . Proto ID Catalog 1 | . . . 1 . . . . . . . Fabricator Hacks . | . . . . . . . . . . . Repair Station Hacks . | . . . . . . . . . . . Recycling Unit Hacks 1 | . . . . . . 1 . . . . Report Inventory 1 | . . . . . . 1 . . . . Scanalyzer . | . . . . . . . . . . . Garrison Access Hacks . | . . . . . . . . . . . Unauthorized Hacks 5 | . 3 . . . 1 1 . . . . Terminals 3 | . 2 . . . 1 . . . . . Assimilate 3 | . 2 . . . 1 . . . . . Fabricators . | . . . . . . . . . . . Repair Stations 1 | . 1 . . . . . . . . . Mechanics 1 | . 1 . . . . . . . . . Recycling Units 1 | . . . . . . 1 . . . . Monitor 1 | . . . . . . 1 . . . . Scanalyzers . | . . . . . . . . . . . Garrison Access . | . . . . . . . . . . . Data Cores Recovered . | . . . . . . . . . . . Used . | . . . . . . . . . . . Hacking Detections 7 | . 3 . . . 2 1 . 1 . . Full Trace Events 1 | . . . . . 1 . . . . . Feedback Events . | . . . . . . . . . . . Feedback Blocked . | . . . . . . . . . . . Robot Schematics Acquired 4 | . . . . . . . . . 4 . Robots Built . | . . . . . . . . . . . Authchips . | . . . . . . . . . . . Time . | . . . . . . . . . . . Total Robot Build Rating . | . . . . . . . . . . . Part Schematics Acquired 13 | . . . . . . . . . 13 . Parts Built . | . . . . . . . . . . . Authchips . | . . . . . . . . . . . Time . | . . . . . . . . . . . Total Part Build Rating . | . . . . . . . . . . . Part Studies Acquired . | . . . . . . . . . . . Parts Repaired . | . . . . . . . . . . . Time . | . . . . . . . . . . . Parts Recycled . | . . . . . . . . . . . Recycled Matter . | . . . . . . . . . . . Retrieved Matter . | . . . . . . . . . . . Retrieved Components . | . . . . . . . . . . . Parts Scanalyzed . | . . . . . . . . . . . Part Schematics Acquired . | . . . . . . . . . . . Parts Damaged . | . . . . . . . . . . . Bothacking | -11 -10 -10 -10 -9 -8 -7 -7 -7 -7 -6 ------------ Run | Yrd Mat Min Exi Min Mat Fac Low Low Dat Pro Used RIF Installer . | . . . . . . . . . . . Robots Hacked . | . . . . . . . . . . . Non-combat . | . . . . . . . . . . . Combat . | . . . . . . . . . . . Robot Hacks Applied . | . . . . . . . . . . . Relay Couplers Released . | . . . . . . . . . . . Fabnet Peak Effective % . | . . . . . . . . . . . Robots Rewired . | . . . . . . . . . . . Allies Hacked . | . . . . . . . . . . . Hacks Repelled . | . . . . . . . . . . . Allies | -11 -10 -10 -10 -9 -8 -7 -7 -7 -7 -6 -------- Run | Yrd Mat Min Exi Min Mat Fac Low Low Dat Pro Total Allies 3 | . . . . 3 . . . . . . Largest Group 3 | . . . . 3 3 . . . . . Highest-Rated Group 40 | . . . . 40 40 . . . . . Highest-Rated Ally 16 | . . . . 16 16 . . . . . Total Orders . | . . . . . . . . . . . Ally Attacks 23 | . . . . . 19 . . . 4 . Total Damage 206 | . . . . . 187 . . . 19 . Kills 3 | . . . . . 3 . . . . . Allies Corrupted . | . . . . . . . . . . . Allies Melted 1 | . . . . . 1 . . . . . Intel | -11 -10 -10 -10 -9 -8 -7 -7 -7 -7 -6 ------- Run | Yrd Mat Min Exi Min Mat Fac Low Low Dat Pro Active Infowar (turns) 6879 | 9 373 308 2414 783 673 322 1877 120 . . Sensors 1989 | . . . . 607 257 . 1005 120 . . Terrain 2576 | . . . . . 259 320 1877 120 . . Traps 1540 | . . . . . 383 322 835 . . . Seismic 3280 | 9 373 308 2414 176 . . . . . . ECM 4 | . . . . . 4 . . . . . Robot Analysis Total . | . . . . . . . . . . . Derelict Logs Recovered 5 | . . . . 2 . . 1 1 . 1 Drone Launches 4 | . . . . . . . . . 4 . Drone Recoveries 4 | . . . . . . . . . 4 . Exploration | -11 -10 -10 -10 -9 -8 -7 -7 -7 -7 -6 ------------- Run | Yrd Mat Min Exi Min Mat Fac Low Low Dat Pro Turns Passed 8023 | 125 373 308 2414 785 768 322 1877 826 166 59 Spaces Moved 4572 | 65 194 183 1036 323 368 186 1384 596 123 114 Core 137 | 6 . . . . . . . . 17 114 Treads 2741 | 59 194 183 1036 323 368 186 392 . . . Legs . | . . . . . . . . . . . Wheels 1694 | . . . . . . . 992 596 106 . Hover . | . . . . . . . . . . . Flight . | . . . . . . . . . . . Fastest Speed 50 | 50 160 160 160 240 160 160 95 108 50 50 Average Speed 164 | 149 160 160 232 240 173 160 124 130 123 50 Slowest Speed 240 | 160 160 160 240 240 240 160 160 135 135 50 Overloaded Moves . | . . . . . . . . . . . Propulsion Burnouts . | . . . . . . . . . . . Robots Hopped . | . . . . . . . . . . . Potential Cave-ins . | . . . . . . . . . . . Cave-ins Triggered . | . . . . . . . . . . . Exploration Rate (%) 48 | 5 27 33 94 73 29 5 98 70 77 17 Regions Visited 10 Branch Regions 7 Pre-discovered Areas 5 | . . . 1 1 . . 1 1 1 . Known Exits Taken 5 | . 1 . . . . 1 1 1 1 . Unknown Exits Taken 5 | 1 . 1 1 1 1 . . . . . Scrap Searched 5 | . . 1 . 1 . . 3 . . . Spaces Dug . | . . . . . . . . . . . Terrain Destroyed 35 | . . . . . 10 . 2 10 13 . Melee . | . . . . . . . . . . . Projectile 26 | . . . . . 3 . . 10 13 . AOE 9 | . . . . . 7 . 2 . . . Terrain Rammed . | . . . . . . . . . . . Walls Destroyed . | . . . . . . . . . . . Machines Disabled . | . . . . . . . . . . . Actions | -11 -10 -10 -10 -9 -8 -7 -7 -7 -7 -6 --------- Run | Yrd Mat Min Exi Min Mat Fac Low Low Dat Pro Total 4901 | 83 249 188 1042 332 457 202 1470 632 130 116 Wait 125 | . 48 1 . 4 39 3 18 9 1 2 Move 4562 | 64 193 182 1035 322 367 185 1383 595 122 114 Hop . | . . . . . . . . . . . Pick Up 43 | 7 2 . 2 3 9 3 11 6 . . Fast Attach 17 | 4 1 . . . 7 1 3 1 . . Attach 23 | 3 . . . . 4 3 7 5 1 . Detach 6 | . 1 . . . 3 1 1 . . . Swap 10 | 1 . . 1 3 3 . 1 1 . . Drop 17 | . . . 1 . 7 1 7 1 . . Fire 92 | 4 4 5 . . 17 4 38 14 6 . Melee . | . . . . . . . . . . . Ram . | . . . . . . . . . . . Kick . | . . . . . . . . . . . Crush 2 | . . . . . 1 1 . . . . Escape Stasis . | . . . . . . . . . . . Rewire 4 | . . . 3 . . . 1 . . . Trap . | . . . . . . . . . . . Miscellaneous . | . . . . . . . . . . . Route ------- -11/Scrapyard -10/Materials (discovered 2 exits: *Min x2) -10/Mines -10/Exiles (discovered 2 exits: *Min x2) -9/Mines -8/Materials -7/Factory -7/Lower Caves -7/Lower Caves -7/Data Miner -6/Proximity Caves History --------- Turn | Location | Event 51 | -11/Scrapyard | Discovered new exit (range 15) 126 | -11/Scrapyard | Entered Materials 310 | -10/Materials | Build established: Mutant 380 | -10/Materials | Identified exit to Mines 499 | -10/Materials | Entered Mines 505 | -10/Mines | Met a Derelict bent on vengeance 537 | -10/Mines | Deemed a non-threat by the Exiles lab entrance 539 | -10/Mines | Discovered new exit (range 5) 807 | -10/Mines | Entered Exiles 830 | -10/Exiles | Discovered new exit (range 15) 852 | -10/Exiles | Met 8R-AWN 881 | -10/Exiles | Met EX-HEX 1018 | -10/Exiles | Met EX-DEC 1108 | -10/Exiles | Visited The Gauntlet 1472 | -10/Exiles | Discovered new exit (range 14) 1597 | -10/Exiles | Learned location of Zion (-6) 1695 | -10/Exiles | Met EX-BIN 2464 | -10/Exiles | Aligned with FarCom system 2467 | -10/Exiles | Given EX-Vault access code 2527 | -10/Exiles | Opened EX-Vault 2548 | -10/Exiles | Found AWS/Gauss 2621 | -10/Exiles | Warned to stay clear of 0b10 Research branches 3221 | -10/Exiles | Left Exiles lab with AWS/Gauss 3221 | -10/Exiles | Entered Mines 3391 | -9/Mines | Found a damaged Exp. Sensor Array with a note attached 3396 | -9/Mines | Found Prototype Device 3397 | -9/Mines | Identified Exp. Sensor Array 3427 | -9/Mines | Learned Materials security intel 3480 | -9/Mines | Assisted by bots powering up and referring to "LRC-V3" 3661 | -9/Mines | Found the Drone Emporium 3674 | -9/Mines | Found Prototype Device 3703 | -9/Mines | Build established: Skirmisher 3716 | -9/Mines | Identified Splice Drone Bay 3875 | -9/Mines | Discovered new exit (range 15) 4006 | -9/Mines | Entered Materials 4006 | -8/Materials | Accompanied by 3 allies 4006 | -8/Materials | Evolved 4 slots: Propulsion x2, Utility x1, Weapon x1 4232 | -8/Materials | Garrison activated, responded to threat 4716 | -8/Materials | Discovered new exit (range 4) 4774 | -8/Materials | Entered Factory 4774 | -7/Factory | Evolved 2 slots: Propulsion x1, Utility x1 4994 | -7/Factory | Discovered new exit (range 16) 5062 | -7/Factory | Identified exit to Lower Caves 5096 | -7/Factory | Entered Lower Caves 5123 | -7/Lower Caves | Encountered a Warlord checkpoint 5148 | -7/Lower Caves | Learned location of Extension (-5) 5340 | -7/Lower Caves | Build established: Scavenger-Skirmisher 5834 | -7/Lower Caves | Lost 4 parts (4n) 5962 | -7/Lower Caves | Lost 4 parts (1p1n1u1w) 6765 | -7/Lower Caves | Entered a destroyed Warlord outpost 6830 | -7/Lower Caves | Discovered new exit (range 3) 6832 | -7/Lower Caves | Identified exit to Lower Caves 6973 | -7/Lower Caves | Entered another Lower Caves area 7071 | -7/Lower Caves | Spotted B-75 Beast 7097 | -7/Lower Caves | Destroyed B-75 Beast 7124 | -7/Lower Caves | Lost 7 parts (2n2u3w) 7316 | -7/Lower Caves | Encountered a Warlord checkpoint 7434 | -7/Lower Caves | Build established: Tank 7791 | -7/Lower Caves | Discovered new exit (range 7) 7797 | -7/Lower Caves | Identified exit to Data Miner 7799 | -7/Lower Caves | Entered Data Miner 7799 | -7/Data Miner | Discovered new exit (range 6) 7806 | -7/Data Miner | Identified exit to Proximity Caves 7825 | -7/Data Miner | Met Data Miner 7864 | -7/Data Miner | Learned location of Section 7 (-3) 7864 | -7/Data Miner | Acquired the access code to Warlord's prototype stash 7894 | -7/Data Miner | Received God Mode back door access code from Data Miner 7922 | -7/Data Miner | Data Conduit disabled 7954 | -7/Data Miner | Core integrity fell below 50% 7956 | -7/Data Miner | Released all parts (3) 7959 | -7/Data Miner | Core integrity fell below 20% 7965 | -7/Data Miner | Entered Proximity Caves 7969 | -6/Proximity Caves | Spotted B-75 Beast 7982 | -6/Proximity Caves | Lost 9 parts (1p4n2u2w) 8024 | -6/Proximity Caves | Destroyed by P-60 Hacker with Shock Rifle Last Messages --------------- 07949_ Lgt. Angular Momentum Engine destroyed. 07949_ Splice Drone Bay destroyed. 07950_ Slug penetrates Enhanced Grunt. 07950_ Slug penetrates Earth. 07951_ Enhanced Grunt destroyed. 07951_ AWS/Gauss destroyed. 07952_ Enhanced Grunt suffers critical hit (Burn). 07953_ Enhanced Grunt heat damages Adv. Heat Sink, Adv. Heat Sink, Adv. Heat Sink. 07955_ Enhanced Grunt overheating. 07956_ Released Hcp. Storage Unit. 07956_ Released Imp. Signal Interpreter. 07956_ Released Plasma Rifle. LOCATION=PROXIMITY CAVES GOAL=ESCAPE 08019_ Acquired derelict log, extracted data. Data stored: Extension entrances (x1). 08020_ A derelict emerges from the shadows: "Hey! In the mood for some fun?" Map ----- +----------------------------------------------------+ | ?????????????????????????????????????????????????? | | ?????????????????????????????????????????????????? | | ?????????????????????????????????????????????????? | | ?????????????????????????????????????????????????? | | ?????????????????????????????????????????????????? | | ?????????????????????????????????????????????????? | | ?????????????????????????????????????????????????? | | ?????????????????????????????????????????????????? | | ?????????????????????????????????????????????????? | | ?????????????????????????????????????????????????? | | ?????????????????????????????????????????????????? | | ?????????????????????????????????????????????????? | | ??????????????#???###????????????????????????????? | | ?????????????? ??? ????????????????????????????? | | ???#####?????? ??? ????????????????????????????? | | ??## ##????? ??? ????????????????????????????? | | ?## #????? ??? ????????????????????????????? | | ## #????# #?? ????????????????????????????? | | # #?????# #?? ????????????????????????????? | | ##?????# #??# ??????##????????????????????? | | ####??????# #??# #???### ##???????????????????? | | ##????????# #??# #??## #???????????????????? | | #????????# #??# #### ##??????????????????? | | # ##???????# #??# ## ###????????????????? | | # ######### #### c ##???????????????? | | @ #???????????? | | ################# #???????????????? | | ##???????????????#### ##???????????????? | | ##???????????????????## ##????????????????? | | ##??????????????????????# ###?????????????????? | | #???????????????????????? #???????????????????? | | #??????????????????????? ??????????????????? | | ?????????????????????? ?????????????????? | | ????????????????????? #????????????????? | | ######???????????????????? ????????????????? | | # #?????????????????????????? ???????????????? | | ?##?????????????????????????? ??????????????? | | ????????????? #???????????????# p???????????????? | | ??????????? #????????????????##????????????????? | | ????????? #??????????????????????????????????? | | ####??? ##?????????????????????????????????? | | ##" #?????????????????????????????????? | | ??????????????????????????????? | | ## #?????????????????????????????????????? | | ##?????##?????????????????????????????????????? | | ##?????????????????????????????????????????????? | | ###??????????????????????????????????????????????? | | ?????????????????????????????????????????????????? | | ?????????????????????????????????????????????????? | | ?????????????????????????????????????????????????? | +----------------------------------------------------+ Best States ------------- Heat Dissipation 34 Energy Generation 18 Energy Capacity 290 Matter Stores 300 Matter Capacity 300 Sight Range 16 Robot Scan Range 20 Terrain Scan Range 16 Terrain Scan Density 10 Armor Coverage 225 Evasion (%) 50 Recoil Reduction 5 Salvage Targeting 2 Item Schematics ----------------- Combat Drone Bay | -7/Data Miner | Free Lgt. Regenerative Plating | -7/Data Miner | Free Cld. Aerolev Unit | -7/Data Miner | Free Gravity Neutralizer | -7/Data Miner | Free Prc. Rocket Launcher | -7/Data Miner | Free Hvy. Treads | -7/Data Miner | Free Adv. Shield Generator | -7/Data Miner | Free Tesla Rifle | -7/Data Miner | Free Lrn. Missile Launcher | -7/Data Miner | Free Imp. Plasma Cutter | -7/Data Miner | Free Imp. Coolant Injector | -7/Data Miner | Free Imp. Cloaking Device | -7/Data Miner | Free Phase Gun | -7/Data Miner | Free Robot Schematics ------------------ L-41 Fighter | -7/Data Miner | Free B-48 Gladiator | -7/Data Miner | Free M-14 Sweeper | -7/Data Miner | Free G-47 Trooper | -7/Data Miner | Free Fabricated ------------ Nothing Repaired ---------- Nothing Studied --------- None Alien Tech Used ----------------- None Achievements -------------- Drive-By Challenges ------------ None Game ------ Seed ChargeTitaniumMount Manual? 0 Play Time 00:58:02 Cumulative 17.9 hours Start 2026.01.03 @ 01:10:35 End 2026.01.03 @ 02:11:20 Sessions 1 Manual Loads 0 Difficulty Rogue Special Mode None Game No. 19 Rogue 19 Adventurer 0 Explorer 0 Win Type - Total 0 Types 0/0/0/0/0/0/0/0/0/0 Lore% 16 Gallery% 22 Achievement% 30 Wizard Run 0 Options --------- Layout 1 ASCII 0 Keyboard 1 Movement Numpad Keybinds 0 Fullscreen 1 Font 24/Smallcaps Map View 50x35 Zoom Use 0% Tactical HUD 1 Map Filters NONE Filters NONE Steam 1 RUN: f467f761-f6ba-4676-b2cc-df694e5ec7f1